fUSD/lending_fUSD_20250208
["ID","MTS","AMOUNT","RATE_DAILY","PERIOD"]
[352281606,1739026259657,-500.0,0.00010546,2]
[352281607,1739026259668,-500.0,0.00010546,2]
[352281608,1739026259679,-500.0,0.00010546,2]
[352281609,1739026259692,-500.0,0.00010546,2]
[352281610,1739026259703,-906.28,0.00010546,2]
[352281611,1739026259715,-500.0,0.00010546,2]
[352281612,1739026259726,-500.0,0.00010546,2]
[352281613,1739026259739,-500.0,0.00010546,2]
[352281614,1739026259750,-1048.24,0.00010546,2]
[352281615,1739026259761,-309.22127175,0.00010546,2]
[352281616,1739026259773,-500.0,0.00010546,2]
[352281617,1739026259787,-500.0,0.00010546,2]
[352281618,1739026259799,-500.0,0.00010546,2]
[352281619,1739026259812,-512.4,0.00010546,2]
[352281620,1739026259823,-641.81690736,0.00010546,2]
[352281621,1739026259836,-500.0,0.00010546,2]
[352281622,1739026259848,-1196.56,0.00010546,2]
[352281623,1739026259859,-500.0,0.00010546,2]
[352281624,1739026259871,-500.0,0.00010546,2]
[352281625,1739026259883,-1031.91,0.00010546,2]
[352281626,1739026259895,-500.0,0.00010546,2]
[352281627,1739026259906,-500.0,0.00010546,2]
[352281628,1739026259918,-1022.59,0.00010546,2]
[352281629,1739026259930,-500.0,0.00010546,2]
[352281630,1739026259942,-500.0,0.00010546,2]
[352281631,1739026259954,-910.52,0.00010546,2]
[352281632,1739026259965,-1252.81,0.00010546,2]
[352281633,1739026259975,-500.0,0.00010546,2]
[352281634,1739026259986,-837.81,0.00010546,2]
[352281635,1739026259998,-957.31,0.00010546,2]
[352281636,1739026260010,-500.0,0.00010546,2]
[352281637,1739026260021,-500.0,0.00010546,2]
[352281638,1739026260032,-500.0,0.00010546,2]
[352281639,1739026260043,-500.0,0.00010546,2]
[352281640,1739026260055,-924.72,0.00010546,2]
[352281641,1739026260066,-1083.82,0.00010546,2]
[352281642,1739026260078,-441.97625777,0.00010546,2]
[352281643,1739026260089,-500.0,0.00010546,2]
[352281644,1739026260100,-500.0,0.00010546,2]
[352281645,1739026260111,-974.06,0.00010546,2]
[352281646,1739026260122,-752.06,0.00010546,2]
[352281647,1739026260132,-500.0,0.00010546,2]
[352281648,1739026260144,-1247.56,0.00010546,2]
[352281649,1739026260154,-8317.82,0.00010546,2]
[352281650,1739026260166,-1421.77,0.00010546,2]
[352281651,1739026260177,-631.34,0.00010546,2]
[352281652,1739026260188,-1072.48,0.00010546,2]
[352281653,1739026260199,-1505.97,0.00010546,2]
[352281654,1739026260211,-500.0,0.00010546,2]
[352281655,1739026260222,-1102.95,0.00010546,2]
[352281656,1739026260234,-554.7,0.00010546,2]
[352281657,1739026260246,-1575.94,0.00010546,2]
[352281658,1739026260256,-1383.41,0.00010546,2]
[352281659,1739026260267,-1317.01,0.00010546,2]
[352281660,1739026260278,-836.92,0.00010546,2]
[352281661,1739026260289,-836.54,0.00010546,2]
[352281662,1739026260299,-2825.43,0.00010546,2]
[352281663,1739026260310,-801.18,0.00010546,2]
[352281664,1739026260320,-1691.58,0.00010546,2]
[352281665,1739026260330,-702.12,0.00010546,2]
[352281666,1739026260342,-2689.37,0.00010546,2]
[352281667,1739026260353,-500.0,0.00010546,2]
[352281668,1739026260364,-1106.63,0.00010546,2]
[352281669,1739026260374,-7893.9,0.00010546,2]
[352281670,1739026260385,-1323.78,0.00010546,2]
[352281671,1739026260396,-1253.18,0.00010546,2]
[352281672,1739026260407,-3271.27,0.00010546,2]
[352281673,1739026260418,-1229.47,0.00010546,2]
[352281674,1739026260429,-1507.29,0.00010546,2]
[352281675,1739026260440,-1826.28,0.00010546,2]
[352281676,1739026260451,-514.29,0.00010546,2]
[352281677,1739026260463,-684.67,0.00010546,2]
[352281678,1739026260474,-2570.97,0.00010546,2]
[352281679,1739026260484,-1173.27,0.00010546,2]
[352281680,1739026260496,-1229.47,0.00010546,2]
[352281681,1739026260507,-2260.43,0.00010546,2]
[352281682,1739026260519,-983.42,0.00010546,2]
[352281683,1739026260531,-2002.58,0.00010546,2]
[352281684,1739026260542,-500.0,0.00010546,2]
[352281685,1739026260553,-1205.81,0.00010546,2]
[352281686,1739026260564,-1057.86,0.00010546,2]
[352281687,1739026260575,-1006.09,0.00010546,2]
[352281688,1739026260587,-1671.41,0.00010546,2]
[352281689,1739026260598,-1803.33,0.00010546,2]
[352281690,1739026260608,-500.0,0.00010546,2]
[352281691,1739026260619,-1909.26,0.00010546,2]
[352281692,1739026260630,-2641.56,0.00010546,2]
[352281693,1739026260641,-1507.28,0.00010546,2]
[352281694,1739026260652,-500.0,0.00010546,2]
[352281695,1739026260663,-500.0,0.00010546,2]
[352281696,1739026260674,-500.0,0.00010546,2]
[352281697,1739026260684,-500.0,0.00010546,2]
[352281698,1739026260695,-500.0,0.00010546,2]
[352281699,1739026260707,-500.0,0.00010546,2]
[352281700,1739026260718,-3734.27,0.00010546,2]
[352281701,1739026260728,-513.48,0.00010546,2]
[352281702,1739026260739,-1611.15,0.00010546,2]
[352281703,1739026260750,-891.2,0.00010546,2]
[352281704,1739026260761,-2216.99,0.00010546,2]
[352281705,1739026260771,-1246.73,0.00010546,2]
[352281706,1739026260782,-500.0,0.00010546,2]
[352281707,1739026260796,-764.88,0.00010546,2]
[352281708,1739026260806,-1984.07,0.00010546,2]
[352281709,1739026260817,-957.88,0.00010546,2]
[352281710,1739026260829,-500.0,0.00010546,2]
[352281711,1739026260840,-1842.63,0.00010546,2]
[352281712,1739026261151,-1514.24,0.00010546,2]
[352281713,1739026261172,-2573.5,0.00010546,2]
[352281714,1739026261195,-2211.87,0.00010546,2]
[352281715,1739026261206,-2441.09,0.00010546,2]
[352281716,1739026261215,-657.03,0.00010546,2]
[352281717,1739026261225,-2415.47,0.00010546,2]
[352281718,1739026261234,-1133.49,0.00010546,2]
[352281719,1739026261243,-1000.0,0.00010546,2]
[352281720,1739026261252,-530.45,0.00010546,2]
[352281721,1739026261262,-1151.35,0.00010546,2]
[352281722,1739026261274,-500.0,0.00010546,2]
[352281723,1739026261285,-3467.02,0.00010546,2]
[352281724,1739026261294,-1453.75,0.00010546,2]
[352281725,1739026261304,-965.47,0.00010546,2]
[352281726,1739026261313,-1424.71,0.00010546,2]
[352281727,1739026261323,-1182.56,0.00010546,2]
[352281728,1739026261333,-500.0,0.00010546,2]
[352281729,1739026261343,-995.21,0.00010546,2]
[352281730,1739026261353,-794.79,0.00010546,2]
[352281731,1739026261362,-1067.88,0.00010546,2]
[352281732,1739026261371,-2227.08,0.00010546,2]
[352281733,1739026261380,-500.0,0.00010546,2]
[352281734,1739026261388,-2566.83,0.00010546,2]
[352281735,1739026261398,-2497.06,0.00010546,2]
[352281736,1739026261407,-520.29,0.00010546,2]
[352281737,1739026261416,-759.9,0.00010546,2]
[352281738,1739026261425,-690.89,0.00010546,2]
[352281739,1739026261435,-970.99,0.00010546,2]
[352281740,1739026261443,-2478.07,0.00010546,2]
[352281741,1739026261452,-500.0,0.00010546,2]
[352281742,1739026261461,-1873.84,0.00010546,2]
[352281743,1739026261470,-1551.26,0.00010546,2]
[352281744,1739026261480,-849.37,0.00010546,2]
[352281745,1739026261491,-507.02,0.00010546,2]
[352281746,1739026261501,-500.0,0.00010546,2]
[352281747,1739026261510,-968.16,0.00010546,2]
[352281748,1739026261519,-500.0,0.00010547,2]
[352281749,1739026261528,-178.02094351,0.00010547,2]
[352281750,1739026261537,-500.0,0.00010547,2]
[352281751,1739026261546,-500.0,0.00010547,2]
[352281752,1739026261556,-500.0,0.00010547,2]
[352281753,1739026261565,-500.0,0.00010547,2]
[352281754,1739026261574,-189.63724413,0.00010547,2]
[352281755,1739026261583,-500.0,0.00010547,2]
[352281756,1739026261593,-500.0,0.00010547,2]
[352281757,1739026261602,-500.0,0.00010547,2]
[352281758,1739026261611,-500.0,0.00010547,2]
[352281759,1739026261621,-500.0,0.00010547,2]
[352281760,1739026261630,-500.0,0.00010547,2]
[352281761,1739026261640,-383.15412796,0.00010547,2]
[352281762,1739026261651,-500.0,0.00010547,2]
[352281763,1739026261660,-500.0,0.00010547,2]
[352281764,1739026261669,-1406.72,0.00010547,2]
[352281765,1739026261679,-606.94,0.00010547,2]
[352281766,1739026261689,-500.0,0.00010547,2]
[352281767,1739026261698,-500.0,0.00010547,2]
[352281768,1739026261707,-500.0,0.00010547,2]
[352281769,1739026261717,-599.03,0.00010547,2]
[352281770,1739026261726,-500.0,0.00010547,2]
[352281771,1739026261736,-500.0,0.00010547,2]
[352281772,1739026261746,-500.0,0.00010547,2]
[352281773,1739026261756,-500.0,0.00010547,2]
[352281774,1739026261766,-500.0,0.00010547,2]
[352281775,1739026261777,-500.0,0.00010547,2]
[352281776,1739026261791,-500.0,0.00010547,2]
[352281777,1739026261802,-500.0,0.00010547,2]
[352281778,1739026261812,-500.0,0.00010547,2]
[352281779,1739026261823,-500.0,0.00010547,2]
[352281780,1739026261832,-500.0,0.00010547,2]
[352281781,1739026261841,-500.0,0.00010547,2]
[352281782,1739026261851,-500.0,0.00010547,2]
[352281783,1739026261860,-585.91,0.00010547,2]
[352281784,1739026261871,-500.0,0.00010547,2]
[352281785,1739026261881,-895.43,0.00010547,2]
[352281786,1739026261891,-667.16,0.00010547,2]
[352281787,1739026261901,-500.0,0.00010547,2]
[352281788,1739026261910,-382.26945635,0.00010547,2]
[352281789,1739026261921,-523.6378188,0.00010547,2]
[352281790,1739026261930,-1122.19,0.00010547,2]
[352281791,1739026261940,-1100.4,0.00010547,2]
[352281792,1739026261950,-500.0,0.00010547,2]
[352281793,1739026261959,-500.0,0.00010547,2]
[352281794,1739026261969,-500.0,0.00010547,2]
[352281795,1739026261978,-500.0,0.00010547,2]
[352281796,1739026261987,-500.0,0.00010547,2]
[352281797,1739026261996,-821.72,0.00010547,2]
[352281798,1739026262005,-500.0,0.00010547,2]
[352281799,1739026262014,-861.29,0.00010547,2]
[352281800,1739026262023,-920.67,0.00010547,2]
[352281801,1739026262033,-500.0,0.00010547,2]
[352281802,1739026262042,-579.08,0.00010547,2]
[352281803,1739026262051,-500.0,0.00010547,2]
[352281804,1739026262060,-500.0,0.00010547,2]
[352281805,1739026262070,-772.46,0.00010547,2]
[352281806,1739026262079,-500.0,0.00010547,2]
[352281807,1739026262088,-500.0,0.00010547,2]
[352281808,1739026262097,-601.24,0.00010547,2]
[352281809,1739026262106,-500.0,0.00010547,2]
[352281810,1739026262115,-500.0,0.00010547,2]
[352281811,1739026262124,-500.0,0.00010547,2]
[352281812,1739026262133,-500.0,0.00010547,2]
[352281813,1739026262142,-500.0,0.00010547,2]
[352281814,1739026262151,-500.0,0.00010547,2]
[352281815,1739026262160,-500.0,0.00010547,2]
[352281816,1739026262169,-500.0,0.00010547,2]
[352281817,1739026262178,-500.0,0.00010547,2]
[352281818,1739026262188,-500.0,0.00010547,2]
[352281819,1739026262198,-528.45,0.00010547,2]
[352281820,1739026262206,-500.0,0.00010547,2]
[352281821,1739026262215,-500.0,0.00010547,2]
[352281822,1739026262224,-500.0,0.00010547,2]
[352281823,1739026262234,-500.0,0.00010547,2]
[352281824,1739026262243,-500.0,0.00010547,2]
[352281825,1739026262251,-500.0,0.00010547,2]
[352281826,1739026262261,-500.0,0.00010547,2]
[352281827,1739026262270,-500.0,0.00010547,2]
[352281828,1739026262279,-500.0,0.00010547,2]
[352281829,1739026262288,-500.0,0.00010547,2]
[352281830,1739026262297,-500.0,0.00010547,2]
[352281831,1739026262307,-319.63951945,0.00010547,2]
[352281832,1739026262316,-500.0,0.00010547,2]
[352281833,1739026262325,-500.0,0.00010547,2]
[352281834,1739026262334,-500.0,0.00010547,2]
[352281835,1739026262343,-570.74,0.00010547,2]
[352281836,1739026262352,-500.0,0.00010547,2]
[352281837,1739026262362,-930.88,0.00010547,2]
[352281838,1739026262371,-1107.01,0.00010547,2]
[352281839,1739026262380,-500.0,0.00010547,2]
[352281840,1739026262389,-500.0,0.00010547,2]
[352281841,1739026262398,-500.0,0.00010547,2]
[352281842,1739026262407,-500.0,0.00010547,2]
[352281843,1739026262416,-500.0,0.00010547,2]
[352281844,1739026262425,-500.0,0.00010547,2]
[352281845,1739026262436,-500.0,0.00010547,2]
[352281846,1739026262445,-785.72,0.00010547,2]
[352281847,1739026262455,-500.0,0.00010547,2]
[352281848,1739026262464,-592.81,0.00010547,2]
[352281849,1739026262473,-500.0,0.00010547,2]
[352281850,1739026262482,-500.0,0.00010547,2]
[352281851,1739026262491,-500.0,0.00010547,2]
[352281852,1739026262500,-500.0,0.00010547,2]
[352281853,1739026262509,-500.0,0.00010547,2]
[352281854,1739026262518,-503.07,0.00010547,2]
[352281855,1739026262527,-500.0,0.00010547,2]
[352281856,1739026262536,-500.0,0.00010547,2]
[352281857,1739026262545,-500.0,0.00010547,2]
[352281858,1739026262554,-1069.38,0.00010547,2]
[352281859,1739026262563,-500.0,0.00010547,2]
[352281860,1739026262573,-571.8800579,0.00010547,2]
[352281861,1739026262582,-855.76,0.00010547,2]
[352281862,1739026262591,-500.0,0.00010547,2]
[352281863,1739026262601,-509.27102398,0.00010547,2]
[352281864,1739026262610,-500.0,0.00010547,2]
[352281865,1739026262619,-500.0,0.00010547,2]
[352281866,1739026262629,-500.0,0.00010547,2]
[352281867,1739026262638,-500.0,0.00010547,2]
[352281868,1739026262647,-500.0,0.00010547,2]
[352281869,1739026262656,-1052.13,0.00010547,2]
[352281870,1739026262665,-500.0,0.00010547,2]
[352281871,1739026262674,-500.0,0.00010547,2]
[352281872,1739026262684,-934.78,0.00010547,2]
[352281873,1739026262697,-500.0,0.00010547,2]
[352281874,1739026262706,-339.11834854,0.00010547,2]
[352281875,1739026262715,-500.0,0.00010547,2]
[352281876,1739026262724,-500.0,0.00010547,2]
[352281877,1739026262733,-500.0,0.00010547,2]
[352281878,1739026262742,-2206.29,0.00010547,2]
[352281879,1739026262751,-528.4,0.00010547,2]
[352281880,1739026262761,-1147.02,0.00010547,2]
[352281881,1739026262770,-500.0,0.00010547,2]
[352281882,1739026262780,-2642.41,0.00010547,2]
[352281883,1739026262794,-500.0,0.00010547,2]
[352281884,1739026262803,-504.92116031,0.00010547,2]
[352281885,1739026262812,-500.0,0.00010547,2]
[352281886,1739026262822,-972.34,0.00010547,2]
[352281887,1739026262834,-2127.470822,0.00010547,2]
[352281888,1739026262843,-552.39,0.00010547,2]
[352281889,1739026262852,-500.0,0.00010547,2]
[352281890,1739026262861,-500.0,0.00010547,2]
[352281891,1739026262870,-1133.72,0.00010547,2]
[352281892,1739026262880,-855.37,0.00010547,2]
[352281893,1739026262889,-500.0,0.00010547,2]
[352281894,1739026262899,-1695.0,0.00010547,2]
[352281895,1739026262909,-626.07,0.00010547,2]
[352281896,1739026262918,-500.0,0.00010547,2]
[352281897,1739026262928,-500.0,0.00010547,2]
[352281898,1739026262938,-500.0,0.00010547,2]
[352281899,1739026262947,-1409.43,0.00010547,2]
[352281900,1739026262956,-1046.27,0.00010547,2]
[352281901,1739026262966,-500.0,0.00010547,2]
[352281902,1739026262975,-500.0,0.00010547,2]
[352281903,1739026262987,-500.0,0.00010547,2]
[352281904,1739026262996,-1819.147157,0.00010547,2]
[352281905,1739026263006,-1167.45,0.00010547,2]
[352281906,1739026263016,-500.0,0.00010547,2]
[352281907,1739026263026,-500.0,0.00010547,2]
[352281908,1739026263036,-1148.79,0.00010547,2]
[352281909,1739026263046,-500.0,0.00010547,2]
[352281910,1739026263056,-833.83,0.00010547,2]
[352281911,1739026263066,-1505.15,0.00010547,2]
[352281912,1739026263076,-500.0,0.00010547,2]
[352281913,1739026263086,-500.0,0.00010547,2]
[352281914,1739026263097,-986.26,0.00010547,2]
[352281915,1739026263107,-500.0,0.00010547,2]
[352281916,1739026263116,-1777.8,0.00010547,2]
[352281917,1739026263126,-500.0,0.00010547,2]
[352281918,1739026263135,-1256.33,0.00010547,2]
[352281919,1739026263144,-582.44,0.00010547,2]
[352281920,1739026263154,-500.0,0.00010547,2]
[352281921,1739026263163,-500.0,0.00010547,2]
[352281922,1739026263173,-1138.32,0.00010547,2]
[352281923,1739026263183,-500.0,0.00010547,2]
[352281924,1739026263194,-2266.83,0.00010547,2]
[352281925,1739026263204,-1649.27,0.00010547,2]
[352281926,1739026263214,-500.0,0.00010547,2]
[352281927,1739026263224,-500.0,0.00010547,2]
[352281928,1739026263234,-596.98187065,0.00010547,2]
[352281929,1739026263243,-500.0,0.00010547,2]
[352281930,1739026263253,-1948.92,0.00010547,2]
[352281931,1739026263263,-5772.15,0.00010547,2]
[352281932,1739026263272,-500.0,0.00010547,2]
[352281933,1739026263282,-2764.98,0.00010547,2]
[352281934,1739026263291,-500.0,0.00010547,2]
[352281935,1739026263301,-500.0,0.00010547,2]
[352281936,1739026263311,-4071.61,0.00010547,2]
[352281937,1739026263320,-500.0,0.00010547,2]
[352281938,1739026263329,-556.12,0.00010547,2]
[352281939,1739026263339,-1437.93,0.00010547,2]
[352281940,1739026263348,-500.0,0.00010547,2]
[352281941,1739026263357,-500.0,0.00010547,2]
[352281942,1739026263367,-500.0,0.00010547,2]
[352281943,1739026263376,-500.0,0.00010547,2]
[352281944,1739026263386,-1065.03,0.00010547,2]
[352281945,1739026263395,-500.0,0.00010547,2]
[352281946,1739026263405,-856.9,0.00010547,2]
[352281947,1739026263414,-500.0,0.00010547,2]
[352281948,1739026263424,-2557.02,0.00010547,2]
[352281949,1739026263434,-500.0,0.00010547,2]
[352281950,1739026263444,-2691.93,0.00010547,2]
[352281951,1739026263454,-1075.04,0.00010547,2]
[352281952,1739026263464,-2127.64,0.00010547,2]
[352281953,1739026263474,-1562.42,0.00010547,2]
[352281954,1739026263484,-500.0,0.00010547,2]
[352281955,1739026263493,-500.0,0.00010547,2]
[352281956,1739026263503,-500.0,0.00010547,2]
[352281957,1739026263512,-1254.87,0.00010547,2]
[352281958,1739026263528,-1365.08,0.00010547,2]
[352281959,1739026263537,-625.68,0.00010547,2]
[352281960,1739026263547,-258.54813263,0.00010583,2]
[352281961,1739026263557,-154.16148577,0.00010584,2]
[352281962,1739026263566,-329.22,0.00010596,2]
[352281963,1739026263577,-163.67677193,0.00010605,2]
[352281964,1739026263586,-154.16148571,0.00010637,2]
[352281965,1739026263596,-500.0,0.00010658,2]
[352281966,1739026263606,-500.0,0.00010658,2]
[352281967,1739026263615,-500.0,0.00010658,2]
[352281968,1739026263625,-1022.0,0.00010658,2]
[352281969,1739026263635,-500.0,0.00010658,2]
[352281970,1739026263645,-986.57,0.00010658,2]
[352281971,1739026263654,-505.84,0.00010658,2]
[352281972,1739026263664,-500.0,0.00010658,2]
[352281973,1739026263674,-500.0,0.00010658,2]
[352281974,1739026263683,-446.09631954,0.00010658,2]
[352281975,1739026263698,-864.72,0.00010658,2]
[352281976,1739026263707,-500.0,0.00010658,2]
[352281977,1739026263717,-500.0,0.00010658,2]
[352281978,1739026263727,-500.0,0.00010658,2]
[352281979,1739026263737,-500.0,0.00010658,2]
[352281980,1739026263748,-578.86,0.00010658,2]
[352281981,1739026263757,-555.84,0.00010658,2]
[352281982,1739026263767,-286.70127432,0.00010658,2]
[352281983,1739026263777,-258.54813259,0.00010662,2]
[352281984,1739026263788,-500.0,0.00010683,2]
[352281985,1739026263798,-656.65,0.00010683,2]
[352281986,1739026263807,-925.49,0.00010683,2]
[352281987,1739026263817,-500.0,0.00010683,2]
[352281988,1739026263827,-774.68,0.00010683,2]
[352281989,1739026263837,-500.0,0.00010683,2]
[352281990,1739026263846,-500.0,0.00010683,2]
[352281991,1739026263855,-1122.18,0.00010683,2]
[352281992,1739026263865,-598.25,0.00010683,2]
[352281993,1739026263874,-500.0,0.00010683,2]
[352281994,1739026263884,-953.88,0.00010683,2]
[352281995,1739026263893,-500.0,0.00010683,2]
[352281996,1739026263903,-500.0,0.00010683,2]
[352281997,1739026263912,-500.0,0.00010683,2]
[352281998,1739026263921,-500.0,0.00010683,2]
[352281999,1739026263930,-500.0,0.00010683,2]
[352282000,1739026263943,-500.0,0.00010683,2]
[352282001,1739026263952,-757.38,0.00010683,2]
[352282002,1739026263962,-706.06,0.00010683,2]
[352282003,1739026263972,-500.0,0.00010683,2]
[352282004,1739026263982,-500.0,0.00010683,2]
[352282005,1739026263994,-292.37955906,0.00010683,2]
[352282006,1739026264003,-500.0,0.00010683,2]
[352282007,1739026264013,-500.0,0.00010683,2]
[352282008,1739026264023,-500.0,0.00010683,2]
[352282009,1739026264032,-906.28,0.00010683,2]
[352282010,1739026264041,-500.0,0.00010683,2]
[352282011,1739026264051,-370.74565006,0.00010683,2]
[352282012,1739026264061,-500.0,0.00010683,2]
[352282013,1739026264070,-1048.24,0.00010683,2]
[352282014,1739026264080,-500.0,0.00010683,2]
[352282015,1739026264089,-500.0,0.00010683,2]
[352282016,1739026264099,-500.0,0.00010683,2]
[352282017,1739026264109,-512.4,0.00010683,2]
[352282018,1739026264118,-500.0,0.00010683,2]
[352282019,1739026264128,-1196.56,0.00010683,2]
[352282020,1739026264138,-500.0,0.00010683,2]
[352282021,1739026264326,-500.0,0.00010683,2]
[352282022,1739026264336,-1031.91,0.00010683,2]
[352282023,1739026264345,-500.0,0.00010683,2]
[352282024,1739026264355,-500.0,0.00010683,2]
[352282025,1739026264366,-1022.59,0.00010683,2]
[352282026,1739026264376,-500.0,0.00010683,2]
[352282027,1739026264386,-500.0,0.00010683,2]
[352282028,1739026264395,-910.52,0.00010683,2]
[352282029,1739026264405,-1252.81,0.00010683,2]
[352282030,1739026264414,-603.48938919,0.00010683,2]
[352282031,1739026264423,-837.81,0.00010683,2]
[352282032,1739026264433,-957.31,0.00010683,2]
[352282033,1739026264443,-500.0,0.00010683,2]
[352282034,1739026264452,-500.0,0.00010683,2]
[352282035,1739026264462,-500.0,0.00010683,2]
[352282036,1739026264472,-500.0,0.00010683,2]
[352282037,1739026264481,-924.72,0.00010683,2]
[352282038,1739026264491,-1083.82,0.00010683,2]
[352282039,1739026264500,-500.0,0.00010683,2]
[352282040,1739026264509,-500.0,0.00010683,2]
[352282041,1739026264519,-974.06,0.00010683,2]
[352282042,1739026264528,-752.06,0.00010683,2]
[352282043,1739026264537,-1247.56,0.00010683,2]
[352282044,1739026264547,-8317.82,0.00010683,2]
[352282045,1739026264557,-1421.77,0.00010683,2]
[352282046,1739026264567,-631.34,0.00010683,2]
[352282047,1739026264577,-1072.48,0.00010683,2]
[352282048,1739026264586,-1505.97,0.00010683,2]
[352282049,1739026264596,-230.32287198,0.00010683,2]
[352282050,1739026264605,-1102.95,0.00010683,2]
[352282051,1739026264615,-554.7,0.00010683,2]
[352282052,1739026264624,-1575.94,0.00010683,2]
[352282053,1739026264633,-500.0,0.00010683,2]
[352282054,1739026264643,-1383.41,0.00010683,2]
[352282055,1739026264653,-1317.01,0.00010683,2]
[352282056,1739026264663,-836.92,0.00010683,2]
[352282057,1739026264672,-836.54,0.00010683,2]
[352282058,1739026264682,-2825.43,0.00010683,2]
[352282059,1739026264692,-801.18,0.00010683,2]
[352282060,1739026264702,-1691.58,0.00010683,2]
[352282061,1739026264711,-702.12,0.00010683,2]
[352282062,1739026264721,-2689.37,0.00010683,2]
[352282063,1739026264731,-500.0,0.00010683,2]
[352282064,1739026264740,-1106.63,0.00010683,2]
[352282065,1739026264749,-7893.9,0.00010683,2]
[352282066,1739026264759,-1323.78,0.00010683,2]
[352282067,1739026264769,-1253.18,0.00010683,2]
[352282068,1739026264778,-3271.27,0.00010683,2]
[352282069,1739026264790,-1229.47,0.00010683,2]
[352282070,1739026264799,-1507.29,0.00010683,2]
[352282071,1739026264809,-1826.28,0.00010683,2]
[352282072,1739026264818,-514.29,0.00010683,2]
[352282073,1739026264829,-684.67,0.00010683,2]
[352282074,1739026264839,-2570.97,0.00010683,2]
[352282075,1739026264848,-1173.27,0.00010683,2]
[352282076,1739026264858,-1229.47,0.00010683,2]
[352282077,1739026264868,-2260.43,0.00010683,2]
[352282078,1739026264878,-983.42,0.00010683,2]
[352282079,1739026264888,-2002.58,0.00010683,2]
[352282080,1739026264897,-500.0,0.00010683,2]
[352282081,1739026264907,-1205.81,0.00010683,2]
[352282082,1739026264917,-1057.86,0.00010683,2]
[352282083,1739026264926,-1006.09,0.00010683,2]
[352282084,1739026264936,-1671.41,0.00010683,2]
[352282085,1739026264946,-1803.33,0.00010683,2]
[352282086,1739026264956,-500.0,0.00010683,2]
[352282087,1739026264965,-1909.26,0.00010683,2]
[352282088,1739026264975,-2641.56,0.00010683,2]
[352282089,1739026264985,-1507.28,0.00010683,2]
[352282090,1739026264995,-500.0,0.00010683,2]
[352282091,1739026265004,-500.0,0.00010683,2]
[352282092,1739026265014,-500.0,0.00010683,2]
[352282093,1739026265024,-500.0,0.00010683,2]
[352282094,1739026265033,-500.0,0.00010683,2]
[352282095,1739026265043,-500.0,0.00010683,2]
[352282096,1739026265053,-3734.27,0.00010683,2]
[352282097,1739026265062,-513.48,0.00010683,2]
[352282098,1739026265072,-1611.15,0.00010683,2]
[352282099,1739026265081,-891.2,0.00010683,2]
[352282100,1739026265091,-2216.99,0.00010683,2]
[352282101,1739026265100,-1246.73,0.00010683,2]
[352282102,1739026265110,-500.0,0.00010683,2]
[352282103,1739026265120,-764.88,0.00010683,2]
[352282104,1739026265129,-1984.07,0.00010683,2]
[352282105,1739026265139,-957.88,0.00010683,2]